fUST/lending_fUST_20240226
["ID","MTS","AMOUNT","RATE_DAILY","PERIOD"]
[315190935,1708917046334,-500.0,0.00019726,2]
[315190936,1708917046343,-500.0,0.00019726,2]
[315190937,1708917046352,-500.0,0.00019726,2]
[315190938,1708917046361,-500.0,0.00019726,2]
[315190939,1708917046370,-500.0,0.00019726,2]
[315190940,1708917046379,-500.0,0.00019726,2]
[315190941,1708917046388,-500.0,0.00019726,2]
[315190942,1708917046397,-500.0,0.00019726,2]
[315190943,1708917046406,-500.0,0.00019726,2]
[315190944,1708917046415,-503.09950777,0.00019726,2]
[315190945,1708917046426,-500.0,0.00019726,2]
[315190946,1708917046435,-500.0,0.00019726,2]
[315190947,1708917046445,-681.42,0.00019726,2]
[315190948,1708917046453,-1587.4,0.00019726,2]
[315190949,1708917046462,-500.0,0.00019726,2]
[315190950,1708917046471,-805.19,0.00019726,2]
[315190951,1708917046479,-10028.72,0.00019726,2]
[315190952,1708917046488,-1476.88,0.00019726,2]
[315190953,1708917046497,-905.28,0.00019726,2]
[315190954,1708917046507,-501.76174069,0.00019726,2]
[315190955,1708917046519,-3748.67,0.00019726,2]
[315190956,1708917046529,-643.01895567,0.00019726,2]
[315190957,1708917046538,-1856.18,0.00019726,2]
[315190958,1708917046547,-500.0,0.00019726,2]
[315190959,1708917046556,-502.22509866,0.00019726,2]
[315190960,1708917046565,-2759.03,0.00019726,2]
[315190961,1708917046574,-500.0,0.00019726,2]
[315190962,1708917046583,-500.0,0.00019726,2]
[315190963,1708917046592,-500.0,0.00019726,2]
[315190964,1708917046601,-2453.69,0.00019726,2]
[315190965,1708917046610,-500.0,0.00019726,2]
[315190966,1708917046619,-1000.0,0.00019726,2]
[315190967,1708917046628,-2023.15,0.00019726,2]
[315190968,1708917046637,-1820.51,0.00019726,2]
[315190969,1708917046646,-500.0,0.00019726,2]
[315190970,1708917046655,-500.0,0.00019726,2]
[315190971,1708917046664,-1005.8616059,0.00019726,2]
[315190972,1708917046675,-500.0,0.00019726,2]
[315190973,1708917046684,-500.0,0.00019726,2]
[315190974,1708917046693,-402.63319177,0.00019726,2]
[315190975,1708917046702,-21001.28,0.00019726,2]
[315190976,1708917046711,-500.0,0.00019726,2]
[315190977,1708917046719,-597.75,0.00019726,2]
[315190978,1708917046728,-500.0,0.00019726,2]
[315190979,1708917046737,-500.0,0.00019726,2]
[315190980,1708917046746,-1638.28,0.00019726,2]
[315190981,1708917046755,-620.57114582,0.00019726,2]
[315190982,1708917046764,-500.0,0.00019726,2]
[315190983,1708917046772,-500.0,0.00019726,2]
[315190984,1708917046781,-500.0,0.00019726,2]
[315190985,1708917046790,-7633.39,0.00019726,2]
[315190986,1708917046799,-2089.83,0.00019726,2]
[315190987,1708917046808,-500.0,0.00019726,2]
[315190988,1708917046817,-10480.73,0.00019726,2]
[315190989,1708917046826,-500.0,0.00019726,2]
[315190990,1708917046834,-503.94397976,0.00019726,2]
[315190991,1708917046843,-2901.8,0.00019726,2]
[315190992,1708917046852,-590.34832418,0.00019726,2]
[315190993,1708917046861,-500.0,0.00019726,2]
[315190994,1708917046870,-500.87195388,0.00019726,2]
[315190995,1708917046879,-500.0,0.00019726,2]
[315190996,1708917046888,-500.0,0.00019726,2]
[315190997,1708917046897,-500.0,0.00019726,2]
[315190998,1708917046906,-737.97,0.00019726,2]
[315190999,1708917046915,-477.02525582,0.00019726,2]
[315191000,1708917046925,-501.17195476,0.00019726,2]
[315191001,1708917046934,-501.35044619,0.00019726,2]
[315191002,1708917046943,-3064.17,0.00019726,2]
[315191003,1708917046952,-502.65434076,0.00019726,2]
[315191004,1708917046961,-2299.51,0.00019726,2]
[315191005,1708917046971,-500.0,0.00019726,2]
[315191006,1708917046980,-3286.5,0.00019726,2]
[315191007,1708917046989,-4187.34,0.00019726,2]
[315191008,1708917046998,-500.0,0.00019726,2]
[315191009,1708917047007,-1508.67,0.00019726,2]
[315191010,1708917047016,-21845.95,0.00019726,2]
[315191011,1708917047026,-500.0,0.00019726,2]
[315191012,1708917047034,-2085.88,0.00019726,2]
[315191013,1708917047044,-500.0,0.00019726,2]
[315191014,1708917047053,-1224.31,0.00019726,2]
[315191015,1708917047062,-1662.03,0.00019726,2]
[315191016,1708917047072,-500.0,0.00019726,2]
[315191017,1708917047081,-500.0,0.00019726,2]
[315191018,1708917047090,-500.0,0.00019726,2]
[315191019,1708917047099,-499.53437694,0.00019726,2]
[315191020,1708917047108,-153.0,0.00019808,2]
[315191021,1708917047117,-153.0,0.00019863,2]
[315191022,1708917047127,-1000.0,0.00019935,2]
[315191023,1708917047136,-1003.79059981,0.00019965,2]
[315191024,1708917047145,-1000.0,0.00019966,2]
[315191025,1708917047154,-1000.0,0.00019973,2]
[315191026,1708917047163,-44327.393,0.0001999,2]
[315191027,1708917047174,-153.65780855,0.00019996,2]
[315191028,1708917047182,-500.0,0.00019999,2]
[315191029,1708917047191,-500.0,0.00019999,2]
[315191030,1708917047200,-500.0,0.00019999,2]
[315191031,1708917047210,-500.0,0.00019999,2]
[315191032,1708917047219,-700.32,0.0002,2]
[315191033,1708917047228,-500.0,0.0002,2]
[315191034,1708917047238,-325.74621711,0.0002,2]
[315191035,1708917047247,-500.0,0.0002,2]
[315191036,1708917047256,-1198.29,0.0002,2]
[315191037,1708917047265,-500.0,0.0002,2]
[315191038,1708917047273,-500.0,0.0002,2]
[315191039,1708917047282,-500.0,0.0002,2]
[315191040,1708917047291,-500.0,0.0002,2]
[315191041,1708917047301,-500.0,0.0002,2]
[315191042,1708917047309,-500.0,0.0002,2]
[315191043,1708917047318,-1583.09,0.0002,2]
[315191044,1708917047327,-625.36,0.0002,2]
[315191045,1708917047336,-500.0,0.0002,2]
[315191046,1708917047345,-500.0,0.0002,2]
[315191047,1708917047354,-508.64002911,0.0002,2]
[315191048,1708917047363,-500.0,0.0002,2]
[315191049,1708917047372,-547.36,0.0002,2]
[315191050,1708917047381,-500.0,0.0002,2]
[315191051,1708917047390,-503.7,0.0002,2]
[315191052,1708917047399,-174.0,0.0002,2]
[315191053,1708917047408,-500.0,0.0002,2]
[315191054,1708917047417,-500.0,0.0002,2]
[315191055,1708917047426,-500.0,0.0002,2]
[315191056,1708917047435,-450.65957018,0.0002,2]
[315191057,1708917047444,-500.0,0.0002,2]
[315191058,1708917047452,-2079.49,0.0002,2]
[315191059,1708917047462,-1545.33,0.0002,2]
[315191060,1708917047471,-300.0,0.0002,8]
[315191061,1708917047480,-500.0,0.0002,2]
[315191062,1708917047489,-500.0,0.0002,2]
[315191063,1708917047498,-500.0,0.0002,2]
[315191064,1708917047512,-317.02712957,0.0002,2]
[315191065,1708917047521,-159.82677792,0.0002,2]
[315191066,1708917047530,-916.37,0.0002,2]
[315191067,1708917047627,-500.0,0.0002,2]
[315191068,1708917047638,-500.0,0.0002,2]
[315191069,1708917047647,-222.16036375,0.0002,2]
[315191070,1708917047656,-500.0,0.0002,2]
[315191071,1708917047665,-500.0,0.0002,2]
[315191072,1708917047675,-500.0,0.0002,2]
[315191073,1708917047684,-500.0,0.0002,2]
[315191074,1708917047693,-411.87418666,0.0002,2]
[315191075,1708917047702,-500.0,0.0002,2]
[315191076,1708917047711,-500.0,0.0002,2]
[315191077,1708917047721,-410.68175763,0.0002,2]
[315191078,1708917047730,-681.42,0.0002,2]
[315191079,1708917047739,-1587.4,0.0002,2]
[315191080,1708917047748,-805.19,0.0002,2]
[315191081,1708917047758,-10028.72,0.0002,2]
[315191082,1708917047768,-1476.88,0.0002,2]
[315191083,1708917047777,-905.28,0.0002,2]
[315191084,1708917047786,-3748.67,0.0002,2]
[315191085,1708917047795,-1856.18,0.0002,2]
[315191086,1708917047804,-500.0,0.0002,2]
[315191087,1708917047813,-2759.03,0.0002,2]
[315191088,1708917047822,-500.0,0.0002,2]
[315191089,1708917047832,-620.54574335,0.0002,2]
[315191090,1708917047841,-502.17659617,0.0002,2]
[315191091,1708917047850,-2453.69,0.0002,2]
[315191092,1708917047859,-500.0,0.0002,2]
[315191093,1708917047868,-1002.71302231,0.0002,2]
[315191094,1708917047877,-2023.15,0.0002,2]
[315191095,1708917047886,-1820.51,0.0002,2]
[315191096,1708917047895,-500.0,0.0002,2]
[315191097,1708917047904,-500.0,0.0002,2]
[315191098,1708917047916,-500.0,0.0002,2]
[315191099,1708917047927,-500.0,0.0002,2]
[315191100,1708917047936,-21001.28,0.0002,2]
[315191101,1708917047945,-597.75,0.0002,2]
[315191102,1708917047954,-500.0,0.0002,2]
[315191103,1708917047963,-500.0,0.0002,2]
[315191104,1708917047973,-1638.28,0.0002,2]
[315191105,1708917047982,-500.0,0.0002,2]
[315191106,1708917047991,-173.49720473,0.0002,2]
[315191107,1708917048001,-7633.39,0.0002,2]
[315191108,1708917048010,-2089.83,0.0002,2]
[315191109,1708917048020,-500.0,0.0002,2]
[315191110,1708917048029,-10480.73,0.0002,2]
[315191111,1708917048038,-500.0,0.0002,2]
[315191112,1708917048047,-2901.8,0.0002,2]
[315191113,1708917048056,-500.0,0.0002,2]
[315191114,1708917048066,-500.0,0.0002,2]
[315191115,1708917048075,-500.0,0.0002,2]
[315191116,1708917048085,-500.0,0.0002,2]
[315191117,1708917048094,-737.97,0.0002,2]
[315191118,1708917048103,-3064.17,0.0002,2]
[315191119,1708917048112,-2299.51,0.0002,2]
[315191120,1708917048122,-500.0,0.0002,2]
[315191121,1708917048130,-3286.5,0.0002,2]
[315191122,1708917048139,-4187.34,0.0002,2]
[315191123,1708917048149,-500.0,0.0002,2]
[315191124,1708917048159,-1508.67,0.0002,2]
[315191125,1708917048171,-21845.95,0.0002,2]
[315191126,1708917048180,-500.0,0.0002,2]
[315191127,1708917048189,-2085.88,0.0002,2]
[315191128,1708917048199,-500.0,0.0002,2]
[315191129,1708917048209,-1224.31,0.0002,2]
[315191130,1708917048219,-1662.03,0.0002,2]
[315191131,1708917048228,-238.73773781,0.0002,2]
[315191132,1708917048238,-500.0,0.0002,2]
[315191133,1708917048248,-153.0,0.0002,2]
[315191134,1708917048258,-153.0,0.0002,2]
[315191135,1708917048267,-153.1724424,0.0002,2]
[315191136,1708917048276,-302.1304468,0.0002,2]
[315191137,1708917048285,-200.5826354,0.0002,2]
[315191138,1708917048294,-153.0,0.0002,2]
[315191139,1708917048303,-153.0,0.0002,2]
[315191140,1708917048313,-153.0,0.0002,2]
[315191141,1708917048322,-153.0,0.0002,2]
[315191142,1708917048331,-200.5826354,0.0002,2]
[315191143,1708917048341,-153.0,0.0002,2]
[315191144,1708917048351,-153.0,0.0002,2]
[315191145,1708917048360,-200.5826354,0.0002,2]
[315191146,1708917048369,-153.0,0.0002,2]
[315191147,1708917048378,-153.0,0.0002,2]
[315191148,1708917048386,-153.0,0.0002,2]
[315191149,1708917048395,-200.5826354,0.0002,2]
[315191150,1708917048404,-153.0,0.0002,2]
[315191151,1708917048413,-153.0,0.0002,2]
[315191152,1708917048424,-153.0,0.0002,2]
[315191153,1708917048433,-200.5826354,0.0002,2]
[315191154,1708917048443,-153.0,0.0002,2]
[315191155,1708917048452,-153.0,0.0002,2]
[315191156,1708917048461,-200.5826354,0.0002,2]
[315191157,1708917048470,-153.0,0.0002,2]
[315191158,1708917048479,-200.5826354,0.0002,2]
[315191159,1708917048488,-153.0,0.0002,2]
[315191160,1708917048497,-153.0,0.0002,2]
[315191161,1708917048507,-153.0,0.0002,2]
[315191162,1708917048516,-153.0,0.0002,2]
[315191163,1708917048526,-200.5826354,0.0002,2]
[315191164,1708917048535,-153.0,0.0002,2]
[315191165,1708917048544,-153.0,0.0002,2]
[315191166,1708917048553,-153.0,0.0002,2]
[315191167,1708917048564,-200.5826354,0.0002,2]
[315191168,1708917048574,-153.0,0.0002,2]
[315191169,1708917048582,-200.5826354,0.0002,2]
[315191170,1708917048592,-153.0,0.0002,2]
[315191171,1708917048601,-278.2948905,0.0002,2]
[315191172,1708917048611,-227.9162986,0.0002,2]
[315191173,1708917048620,-200.5826354,0.0002,2]
[315191174,1708917048630,-153.0,0.0002,2]
[315191175,1708917048639,-200.5826354,0.0002,2]
[315191176,1708917048647,-200.5826354,0.0002,2]
[315191177,1708917048656,-200.5826354,0.0002,2]
[315191178,1708917048666,-153.0,0.0002,2]
[315191179,1708917048677,-200.5826354,0.0002,2]
[315191180,1708917048685,-200.5826354,0.0002,2]
[315191181,1708917048695,-153.0,0.0002,2]
[315191182,1708917048703,-50000.0,0.00020006,2]
[315191183,1708917048713,-1000.0,0.0002002,2]
[315191184,1708917048722,-166.666666,0.00020076,2]
[315191185,1708917048731,-380.12472515,0.00020098,2]
[315191186,1708917048741,-580.0,0.000201,2]
[315191187,1708917048750,-1000.0,0.00020109,2]
[315191188,1708917048759,-300.0,0.00020112,2]
[315191189,1708917048768,-744.78612632,0.00020123,2]
[315191190,1708917048777,-153.0,0.00020137,2]
[315191191,1708917048786,-153.0,0.00020137,2]
[315191192,1708917048795,-1000.0,0.00020142,2]
[315191193,1708917048804,-500.0,0.00020153,2]
[315191194,1708917048813,-500.0,0.00020153,2]
[315191195,1708917048822,-500.0,0.00020153,2]
[315191196,1708917048831,-532.83946543,0.00020153,2]
[315191197,1708917048839,-500.0,0.00020153,2]
[315191198,1708917048849,-500.0,0.00020153,2]
[315191199,1708917048858,-500.0,0.00020153,2]
[315191200,1708917048866,-500.0,0.00020153,2]
[315191201,1708917048875,-500.0,0.00020153,2]
[315191202,1708917048884,-398.47343863,0.00020153,2]
[315191203,1708917048893,-1000.0,0.00020154,2]
[315191204,1708917048902,-1000.0,0.00020154,2]
[315191205,1708917048911,-1000.0,0.00020154,2]
[315191206,1708917048920,-1000.0,0.00020154,2]
[315191207,1708917048930,-5000.0,0.00020154,2]
[315191208,1708917048939,-5000.0,0.00020154,2]
[315191209,1708917048947,-5000.0,0.00020154,2]
[315191210,1708917048957,-1000.0,0.00020154,2]
[315191211,1708917048966,-1000.0,0.00020154,2]
[315191212,1708917048975,-804.85485072,0.00020154,2]
[315191213,1708917048997,-195.14514928,0.00020154,2]
[315191214,1708917049006,-1000.0,0.00020154,2]
[315191215,1708917049015,-1797.90545858,0.00020154,2]
[315191216,1708917049028,-432.81478042,0.00020154,2]
[315191217,1708917049040,-273.91028234,0.00020154,2]
[315191218,1708917049127,-316.31633765,0.00020154,2]
[315191219,1708917049505,-1600.10761346,0.00017257,2]
[315191220,1708917049516,-75.69238654,0.00019178,2]
[315191223,1708917174504,9000.0,0.00017,2]
[315191224,1708917174534,9000.0,0.00017,2]
[315191225,1708917174563,9000.0,0.00017,2]
[315191227,1708918045596,4515.0,0.00021788,21]
[315191330,1708918237774,-653.04920302,0.00016953,2]
[315191331,1708918237783,-1600.10761346,0.00016954,2]
[315191332,1708918237792,-691.70350185,0.00016955,2]
[315191333,1708918237801,-88311.10671554,0.00017,2]
[315191334,1708918237810,-172.80792212,0.00017,2]
[315191335,1708918237819,-228.549974,0.00017562,2]
[315191336,1708918237828,-926.09596786,0.00018,2]
[315191337,1708918237838,-232.87256971,0.000189,2]
[315191338,1708918237849,-168.76608343,0.00019078,2]
[315191339,1708918237857,-237.83,0.00019168,3]
[315191340,1708918237867,-713.51,0.00019168,3]
[315191341,1708918237876,-500.0,0.00019178,2]
[315191342,1708918237886,-500.0,0.00019178,2]
[315191343,1708918237894,-503.89798039,0.00019178,2]
[315191344,1708918237904,-501.61886765,0.00019178,2]
[315191345,1708918237914,-500.0,0.00019178,2]
[315191346,1708918237923,-500.0,0.00019178,2]
[315191347,1708918237932,-502.59254661,0.00019178,2]
[315191348,1708918237941,-503.92602803,0.00019178,2]
[315191349,1708918237950,-500.0,0.00019178,2]
[315191350,1708918237959,-500.0,0.00019178,2]
[315191351,1708918237968,-500.0,0.00019178,2]
[315191352,1708918237977,-390.70436853,0.00019178,2]
[315191353,1708918237986,-500.0,0.00019178,2]
[315191354,1708918237994,-500.0,0.00019178,2]
[315191355,1708918238003,-500.0,0.00019178,2]
[315191356,1708918238012,-500.0,0.00019178,2]
[315191357,1708918238020,-500.60648921,0.00019178,2]
[315191358,1708918238029,-368.55067157,0.00019178,2]
[315191359,1708918238038,-516.12591653,0.00019178,2]
[315191360,1708918238047,-500.0,0.00019178,2]
[315191361,1708918238056,-500.0,0.00019178,2]
[315191362,1708918238065,-500.0,0.00019178,2]
[315191363,1708918238074,-500.0,0.00019178,2]
[315191364,1708918238083,-558.28,0.00019178,2]
[315191365,1708918238092,-506.6715186,0.00019178,2]
[315191366,1708918238101,-500.0,0.00019178,2]
[315191367,1708918238110,-500.73988973,0.00019178,2]
[315191368,1708918238119,-500.0,0.00019178,2]
[315191369,1708918238128,-500.0,0.00019178,2]
[315191370,1708918238137,-500.0,0.00019178,2]
[315191371,1708918238146,-497.00174819,0.00019178,2]
[315191372,1708918238155,-500.0,0.00019178,2]
[315191373,1708918238163,-500.0,0.00019178,2]
[315191374,1708918238172,-500.0,0.00019178,2]
[315191375,1708918238181,-506.31,0.00019178,2]
[315191376,1708918238190,-500.0,0.00019178,2]
[315191377,1708918238201,-500.63508727,0.00019178,2]
[315191378,1708918238210,-500.0,0.00019178,2]
[315191379,1708918238218,-500.0,0.00019178,2]
[315191380,1708918238227,-500.0,0.00019178,2]
[315191381,1708918238236,-500.0,0.00019178,2]
[315191382,1708918238357,-234.57397735,0.00019178,2]
[315191383,1708918238367,-500.0,0.00019178,2]
[315191384,1708918238376,-500.0,0.00019178,2]
[315191385,1708918238385,-500.0,0.00019178,2]
[315191386,1708918238393,-500.0,0.00019178,2]
[315191387,1708918238404,-500.0,0.00019178,2]
[315191388,1708918238413,-500.0,0.00019178,2]
[315191389,1708918238422,-500.0,0.00019178,2]
[315191390,1708918238430,-500.0,0.00019178,2]
[315191391,1708918238440,-500.0,0.00019178,2]
[315191392,1708918238450,-151.0,0.00019178,2]
[315191393,1708918238458,-500.0,0.00019178,2]
[315191394,1708918238467,-500.0,0.00019178,2]
[315191395,1708918238476,-500.0,0.00019178,2]
[315191396,1708918238484,-501.61062038,0.00019178,2]
[315191397,1708918238493,-267.02389564,0.00019178,2]
[315191398,1708918238502,-500.0,0.00019178,2]
[315191399,1708918238510,-501.20981282,0.00019178,2]
[315191400,1708918238519,-501.71371694,0.00019178,2]
[315191401,1708918238528,-576.68,0.00019178,2]
[315191402,1708918238537,-500.0,0.00019178,2]
[315191403,1708918238546,-500.0,0.00019178,2]
[315191404,1708918238555,-500.0,0.00019178,2]
[315191405,1708918238563,-500.0,0.00019178,2]
[315191406,1708918238572,-291.00212191,0.00019178,2]
[315191407,1708918238580,-500.0,0.00019178,2]
[315191408,1708918238589,-500.0,0.00019178,2]
[315191409,1708918238598,-500.0,0.00019178,2]
[315191410,1708918238607,-771.64,0.00019178,2]
[315191411,1708918238616,-500.0,0.00019178,2]
[315191412,1708918238625,-500.0,0.00019178,2]
[315191413,1708918238633,-527.74951966,0.00019178,2]
[315191414,1708918238642,-500.35866528,0.00019178,2]
[315191415,1708918238651,-1438.2,0.00019178,2]
[315191416,1708918238659,-502.56636527,0.00019178,2]
[315191417,1708918238668,-500.0,0.00019178,2]
[315191418,1708918238677,-500.0,0.00019178,2]
[315191419,1708918238687,-500.0,0.00019178,2]
[315191420,1708918238696,-502.89262175,0.00019178,2]
[315191421,1708918238705,-635.83996825,0.00019178,2]
[315191422,1708918238714,-614.77234965,0.00019178,2]
[315191423,1708918238723,-500.0,0.00019178,2]
[315191424,1708918238732,-500.0,0.00019178,2]
[315191425,1708918238742,-588.75636197,0.00019178,2]
[315191426,1708918238751,-500.0,0.00019178,2]
[315191427,1708918238759,-1000.0,0.00019178,2]
[315191428,1708918238768,-500.0,0.00019178,2]
[315191429,1708918238777,-510.36105547,0.00019178,2]
[315191430,1708918238786,-500.0,0.00019178,2]
[315191431,1708918238795,-500.0,0.00019178,2]
[315191432,1708918238804,-500.0,0.00019178,2]
[315191433,1708918238813,-414.96663376,0.00019178,2]
[315191434,1708918238822,-500.0,0.00019178,2]
[315191435,1708918238830,-500.0,0.00019178,2]
[315191436,1708918238841,-500.0,0.00019178,2]
[315191437,1708918238851,-2179.12,0.00019178,2]
[315191438,1708918238860,-500.0,0.00019178,2]
[315191439,1708918238869,-500.0,0.00019178,2]
[315191440,1708918238879,-500.0,0.00019178,2]
[315191441,1708918238888,-501.52534223,0.00019178,2]
[315191442,1708918238896,-500.0,0.00019178,2]
[315191443,1708918238905,-500.0,0.00019178,2]
[315191444,1708918238914,-500.0,0.00019178,2]
[315191445,1708918238925,-510.91242024,0.00019178,2]
[315191446,1708918238934,-500.0,0.00019178,2]
[315191447,1708918238943,-616.05400382,0.00019178,2]
[315191448,1708918238952,-500.0,0.00019178,2]
[315191449,1708918238961,-1698.73,0.00019178,2]
[315191450,1708918238970,-500.0,0.00019178,2]
[315191451,1708918238978,-500.0,0.00019178,2]
[315191452,1708918238987,-500.0,0.00019178,2]
[315191453,1708918238997,-500.0,0.00019178,2]
[315191454,1708918239006,-500.0,0.00019178,2]
[315191455,1708918239015,-500.0,0.00019178,2]
[315191456,1708918239024,-500.0,0.00019178,2]
[315191457,1708918239032,-500.0,0.00019178,2]
[315191458,1708918239041,-500.0,0.00019178,2]
[315191459,1708918239050,-501.56333098,0.00019178,2]
[315191460,1708918239058,-500.0,0.00019178,2]
[315191461,1708918239068,-500.0,0.00019178,2]
[315191462,1708918239077,-500.0,0.00019178,2]
[315191463,1708918239086,-500.0,0.00019178,2]
[315191464,1708918239094,-500.0,0.00019178,2]
[315191465,1708918239103,-500.0,0.00019178,2]
[315191466,1708918239112,-549.12685038,0.00019178,2]
[315191467,1708918239121,-500.0,0.00019178,2]
[315191468,1708918239129,-500.0,0.00019178,2]
[315191469,1708918239137,-312.51592479,0.00019178,2]
[315191470,1708918239147,-500.0,0.00019178,2]
[315191471,1708918239156,-181.84943336,0.00019178,2]
[315191472,1708918239165,-500.0,0.00019178,2]
[315191473,1708918239174,-960.56,0.00019178,2]
[315191474,1708918239182,-242.83946742,0.00019178,2]
[315191475,1708918239191,-500.0,0.00019178,2]
[315191476,1708918239200,-500.0,0.00019178,2]
[315191477,1708918239209,-500.0,0.00019178,2]
[315191478,1708918239219,-502.70298707,0.00019178,2]
[315191479,1708918239227,-500.0,0.00019178,2]
[315191480,1708918239236,-502.62882025,0.00019178,2]
[315191481,1708918239245,-500.0,0.00019178,2]
[315191482,1708918239254,-500.0,0.00019178,2]
[315191483,1708918239263,-757.88,0.00019178,2]
[315191484,1708918239271,-500.0,0.00019178,2]
[315191485,1708918239280,-500.0,0.00019178,2]
[315191486,1708918239289,-743.92,0.00019178,2]
[315191487,1708918239298,-500.0,0.00019178,2]
[315191488,1708918239307,-500.0,0.00019178,2]
[315191489,1708918239315,-500.0,0.00019178,2]
[315191490,1708918239324,-500.0,0.00019178,2]
[315191491,1708918239333,-1641.6,0.00019178,2]
[315191492,1708918239342,-500.0,0.00019178,2]
[315191493,1708918239350,-500.0,0.00019178,2]
[315191494,1708918239359,-500.0,0.00019178,2]
[315191495,1708918239368,-439.23108346,0.00019178,2]
[315191496,1708918239377,-500.0,0.00019178,2]
[315191497,1708918239385,-926.12,0.00019178,2]
[315191498,1708918239395,-500.0,0.00019178,2]
[315191499,1708918239403,-500.0,0.00019178,2]
[315191500,1708918239412,-2871.16,0.00019178,2]
[315191501,1708918239421,-1931.64,0.00019178,2]
[315191502,1708918239429,-500.0,0.00019178,2]
[315191503,1708918239438,-500.0,0.00019178,2]
[315191504,1708918239447,-500.0,0.00019178,2]
[315191505,1708918239456,-500.0,0.00019178,2]
[315191506,1708918239465,-500.0,0.00019178,2]
[315191507,1708918239473,-506.82130633,0.00019178,2]
[315191508,1708918239482,-500.0,0.00019178,2]
[315191509,1708918239490,-2546.44,0.00019178,2]
[315191510,1708918239499,-500.0,0.00019178,2]
[315191511,1708918239508,-500.0,0.00019178,2]
[315191512,1708918239517,-500.0,0.00019178,2]
[315191513,1708918239527,-500.0,0.00019178,2]
[315191514,1708918239536,-4175.75,0.00019178,2]
[315191515,1708918239545,-1000.0,0.00019178,2]
[315191516,1708918239553,-500.0,0.00019178,2]
[315191517,1708918239562,-501.08038985,0.00019178,2]
[315191518,1708918239571,-1935.59,0.00019178,2]
[315191519,1708918239580,-500.0,0.00019178,2]
[315191520,1708918239588,-500.0,0.00019178,2]
[315191521,1708918239597,-500.0,0.00019178,2]
[315191522,1708918239606,-500.0,0.00019178,2]
[315191523,1708918239614,-500.0,0.00019178,2]
[315191524,1708918239623,-500.0,0.00019178,2]
[315191525,1708918239632,-500.0,0.00019178,2]
[315191526,1708918239640,-500.0,0.00019178,2]
[315191527,1708918239650,-500.0,0.00019178,2]
[315191528,1708918239658,-500.0,0.00019178,2]
[315191529,1708918239667,-500.0,0.00019178,2]
[315191530,1708918239676,-501.2748159,0.00019178,2]
[315191531,1708918239685,-248.53773678,0.00019178,2]
[315191532,1708918239693,-500.0,0.00019178,2]
[315191533,1708918239703,-500.0,0.00019178,2]
[315191534,1708918239711,-1282.67,0.00019178,2]
[315191535,1708918239720,-500.0,0.00019178,2]
[315191536,1708918239729,-2190.26,0.00019178,2]
[315191537,1708918239737,-500.0,0.00019178,2]
[315191538,1708918239746,-500.0,0.00019178,2]
[315191539,1708918239755,-500.0,0.00019178,2]